[Event "106th British-ch 2019"]
[Site "Torquay"]
[Date "2019.07.29"]
[Round "3.3"]
[White "Smith, Andrew Philip"]
[Black "Eggleston, David J"]
[Result "1-0"]
[ECO "C00"]
[WhiteElo "2147"]
[BlackElo "2399"]
[Annotator "NA"]
[PlyCount "65"]
[EventDate "2019.07.27"]
[EventType "swiss"]
[EventCountry "GBR"]
[SourceTitle "playchess.com"]
[Source "ChessBase"]
[SourceQuality "1"]
[TimeControl "40/5400+30:1800+30"]

1. e4 {[%emt 0:00:00]} e6 {[%emt 0:03:48]} 2. b3 {[%emt 0:01:05]} d5 {[%emt 0:00:09]} 3. Bb2 {[%emt 0:00:16]} dxe4 {[%emt 0:00:12]} 4. Nc3 {[%emt 0:00:17]} Nf6 {[%emt 0:00:25]} 5. Qe2 {[%emt 0:00:19]} Be7 {[%emt 0:00:17]} 6. O-O-O {[%emt 0:02:55]} O-O {[%emt 0:00:35]} 7. g4 {[%emt 0:12:43]} Nc6 {[%emt 0:04:44]} 8. g5 {[%emt 0:04:43]} Nd5 {[%emt 0:00:15]} 9. Nxe4 {[%emt 0:04:52]} a5 {[%emt 0:00:17]} 10. a4 {[%emt 0:04:00]} b5 {[%emt 0:01:09]} 11. axb5 {[%emt 0:06:30]} Ncb4 {[%emt 0:00:35]} 12. Qc4 {[%emt 0:22:01]} Re8 {[%emt 0:36:16]} 13. Nf3 {[%emt 0:07:08]} a4 {[%emt 0:12:09]} 14. Qd4 {[%emt 0:05:36]} Bf8 {[%emt 0:10:22]} 15. Rg1 {[%emt 0:05:42]} axb3 {[%emt 0:07:37]} 16. cxb3 {[%emt 0:00:19]} e5 {[%emt 0:02:54]} 17. Nxe5 {[%emt 0:01:20]} Bf5 {[%emt 0:01:23]} 18. Bc4 {[%emt 0:06:57]} Ra2 {[%emt 0:03:24]} 19. d3 {[%emt 0:05:04]} Bg6 {[%emt 0:03:14]} 20. Ng4 {[%emt 0:01:41]} Kh8 {[%emt 0:03:07]} 21. Ne5 {[%emt 0:02:01]} Qa8 {[%emt 0:01:32]} 22. Nxg6+ {[%emt 0:00:49]} fxg6 {[%emt 0:00:48]} 23. Rge1 {[%emt 0:01:42]} c5 {[%emt 0:04:09]} 24. bxc6 {[%emt 0:00:24]} Qxc6 {[%emt 0:00:23]} 25. Nc3 {[%emt 0:00:50]} Nxc3 {[%emt 0:01:30]} 26. Qxc3 {[%emt 0:01:03]} Rxe1 {[%emt 0:01:08]} 27. Qxe1 {[%emt 0:00:42]} Qa8 {[%emt 0:00:37]} 28. Qe6 {[%emt 0:00:24]} Ra1+ {[%emt 0:00:25]} 29. Bxa1 {[%emt 0:00:50]} Qxa1+ {[%emt 0:00:26]} 30. Kd2 {[%emt 0:00:08]} Qb2+ {[%emt 0:00:37]} 31. Ke1 {[%emt 0:00:19]} Nc2+ {[%emt 0:00:29]} 32. Kf1 {[%emt 0:00:21]} Ne3+ {[%emt 0:00:27]} 33. fxe3 {[%emt 0:00:26]} 1-0

[Event "106th British-ch 2019"]
[Site "Torquay"]
[Date "2019.07.29"]
[Round "3.7"]
[White "Pein, Malcolm"]
[Black "Emms, John M"]
[Result "1/2-1/2"]
[ECO "A37"]
[WhiteElo "2312"]
[BlackElo "2481"]
[Annotator "ChessBase"]
[PlyCount "76"]
[EventDate "2019.07.27"]
[EventType "swiss"]
[EventCountry "GBR"]
[SourceTitle "playchess.com"]
[Source "ChessBase"]
[SourceQuality "1"]
[TimeControl "40/5400+30:1800+30"]

1. Nf3 {[%emt 0:00:00]} c5 {[%emt 0:01:17]} 2. c4 {[%emt 0:00:00]} g6 {[%emt 0:00:06]} 3. Nc3 {[%emt 0:00:08]} Bg7 {[%emt 0:00:15]} 4. g3 {[%emt 0:00:51]} Nc6 {[%emt 0:00:10]} 5. Bg2 {[%emt 0:00:05]} d6 {[%emt 0:00:25]} 6. O-O {[%emt 0:00:37]} e6 {[%emt 0:00:57]} 7. e3 {[%emt 0:12:10]} Nge7 {[%emt 0:00:09]} 8. d4 {[%emt 0:00:05]} O-O {[%emt 0:00:16]} 9. d5 {[%emt 0:04:31]} Na5 {[%emt 0:01:12]} 10. Nd2 {[%emt 0:05:13]} Rb8 {[%emt 0:14:50]} 11. Qc2 {[%emt 0:05:53]} exd5 {[%emt 0:06:24]} 12. Nxd5 {[%emt 0:01:04]} Nxd5 {[%emt 0:26:54]} 13. Bxd5 {[%emt 0:01:05]} Nc6 {[%emt 0:00:03]} 14. a3 {[%emt 0:03:25]} Ne7 {[%emt 0:07:51]} 15. Bg2 {[%emt 0:09:20]} b5 {[%emt 0:01:34]} 16. cxb5 {[%emt 0:00:58]} Rxb5 {[%emt 0:00:25]} 17. Rb1 {[%emt 0:01:46]} Bf5 {[%emt 0:04:16]} 18. e4 {[%emt 0:02:57]} Be6 {[%emt 0:01:33]} 19. b4 {[%emt 0:06:15]} cxb4 {[%emt 0:02:57]} 20. axb4 {[%emt 0:00:24]} Qb8 {[%emt 0:04:40]} 21. Bb2 {[%emt 0:17:36]} Rc8 {[%emt 0:03:07]} 22. Qd3 {[%emt 0:00:31]} Bxb2 {[%emt 0:00:45]} 23. Rxb2 {[%emt 0:00:06]} Rxb4 {[%emt 0:00:27]} 24. Rxb4 {[%emt 0:00:42]} Qxb4 {[%emt 0:00:05]} 25. Rb1 {[%emt 0:00:25]} Rc3 {[%emt 0:05:11]} 26. Qa6 {[%emt 0:03:39]} Qd4 {[%emt 0:03:24]} 27. Nf1 {[%emt 0:04:09]} Nc6 {[%emt 0:06:59]} 28. Ne3 {[%emt 0:03:55]} Ne5 {[%emt 0:00:27]} 29. Rd1 {[%emt 0:04:17]} Rd3 {[%emt 0:01:23]} 30. Ra1 {[%emt 0:02:00]} Nc4 {[%emt 0:03:57]} 31. Bf1 {[%emt 0:06:18]} Rxe3 {[%emt 0:01:14]} 32. fxe3 {[%emt 0:00:26]} Qxe3+ {[%emt 0:00:29]} 33. Kh1 {[%emt 0:00:16]} Nd2 {[%emt 0:00:30]} 34. Bg2 {[%emt 0:01:50]} Nxe4 {[%emt 0:00:17]} 35. Qxa7 {[%emt 0:00:35]} Nf2+ {[%emt 0:00:12]} 36. Kg1 {[%emt 0:00:06]} Nh3+ {[%emt 0:00:05]} 37. Kh1 {[%emt 0:00:05]} Nf2+ {[%emt 0:01:25]} 38. Kg1 {[%emt 0:00:05]} Nh3+ {[%emt 0:00:39]} 1/2-1/2

[Event "106th British-ch 2019"]
[Site "Torquay"]
[Date "2019.07.29"]
[Round "3.8"]
[White "Arkell, Keith C"]
[Black "Lane, Gary W"]
[Result "1-0"]
[ECO "D25"]
[WhiteElo "2461"]
[BlackElo "2364"]
[Annotator "ChessBase"]
[PlyCount "87"]
[EventDate "2019.07.27"]
[EventType "swiss"]
[EventCountry "GBR"]
[SourceTitle "playchess.com"]
[Source "ChessBase"]
[SourceQuality "1"]
[TimeControl "40/5400+30:1800+30"]

1. d4 {[%emt 0:00:00]} d5 {[%emt 0:00:00]} 2. Nf3 {[%emt 0:00:00]} Nf6 {[%emt 0:00:00]} 3. c4 {[%emt 0:00:00]} dxc4 {[%emt 0:00:00]} 4. e3 {[%emt 0:00:04]} b5 {[%emt 0:00:04]} 5. a4 {[%emt 0:00:53]} b4 {[%emt 0:00:08]} 6. Bxc4 {[%emt 0:00:07]} e6 {[%emt 0:00:09]} 7. Nbd2 {[%emt 0:01:35]} Bb7 {[%emt 0:00:43]} 8. O-O {[%emt 0:00:07]} Be7 {[%emt 0:00:51]} 9. Qe2 {[%emt 0:00:16]} Nbd7 {[%emt 0:01:10]} 10. b3 {[%emt 0:03:07]} O-O {[%emt 0:02:36]} 11. Bb2 {[%emt 0:00:04]} c5 {[%emt 0:00:08]} 12. Rac1 {[%emt 0:00:56]} Rc8 {[%emt 0:04:57]} 13. Ba6 {[%emt 0:05:05]} Qb6 {[%emt 0:02:29]} 14. Bxb7 {[%emt 0:00:05]} Qxb7 {[%emt 0:00:03]} 15. Nc4 {[%emt 0:00:21]} cxd4 {[%emt 0:09:35]} 16. Bxd4 {[%emt 0:00:11]} Nc5 {[%emt 0:04:41]} 17. Nfd2 {[%emt 0:08:31]} Qd5 {[%emt 0:11:28]} 18. Rfd1 {[%emt 0:02:39]} Rfd8 {[%emt 0:05:38]} 19. Bxc5 {[%emt 0:06:05]} Qxc5 {[%emt 0:16:36]} 20. Qf3 {[%emt 0:03:05]} h6 {[%emt 0:13:21]} 21. h3 {[%emt 0:03:44]} e5 {[%emt 0:02:37]} 22. Ne4 {[%emt 0:01:33]} Nxe4 {[%emt 0:02:32]} 23. Qxe4 {[%emt 0:00:04]} Bf6 {[%emt 0:00:13]} 24. Qb7 {[%emt 0:05:20]} g6 {[%emt 0:02:22]} 25. Kh2 {[%emt 0:08:40]} Rc7 {[%emt 0:02:16]} 26. Qf3 {[%emt 0:04:04]} Kg7 {[%emt 0:01:42]} 27. Rxd8 {[%emt 0:01:05]} Bxd8 {[%emt 0:00:05]} 28. Rd1 {[%emt 0:00:32]} Be7 {[%emt 0:06:22]} 29. Qe4 {[%emt 0:12:14]} f6 {[%emt 0:00:38]} 30. g4 {[%emt 0:00:11]} Kf7 {[%emt 0:03:26]} 31. Kg2 {[%emt 0:09:45]} Qc6 {[%emt 0:02:02]} 32. Qxc6 {[%emt 0:00:06]} Rxc6 {[%emt 0:00:04]} 33. Rd7 {[%emt 0:00:07]} a6 {[%emt 0:00:37]} 34. Rb7 {[%emt 0:02:35]} Ke6 {[%emt 0:01:28]} 35. e4 {[%emt 0:00:12]} Bc5 {[%emt 0:01:00]} 36. Kf3 {[%emt 0:01:22]} f5 {[%emt 0:01:00]} 37. Rg7 {[%emt 0:00:39]} Kf6 {[%emt 0:00:53]} 38. Rxg6+ {[%emt 0:00:15]} Kxg6 {[%emt 0:00:31]} 39. Nxe5+ {[%emt 0:00:04]} Kg5 {[%emt 0:00:49]} 40. Nxc6 {[%emt 0:00:05]} fxe4+ {[%emt 0:00:04]} 41. Kxe4 {[%emt 0:30:16]} Bxf2 {[%emt 0:30:06]} 42. Nxb4 {[%emt 0:00:09]} a5 {[%emt 0:00:17]} 43. Nd3 {[%emt 0:00:23]} Bb6 {[%emt 0:00:21]} 44. Kf3 {[%emt 0:00:46]} 1-0

[Event "106th British-ch 2019"]
[Site "Torquay"]
[Date "2019.07.29"]
[Round "3.9"]
[White "Pert, Richard G"]
[Black "Derakhshani, Borna"]
[Result "1-0"]
[ECO "B10"]
[WhiteElo "2430"]
[BlackElo "2300"]
[Annotator "NA"]
[PlyCount "67"]
[EventDate "2019.07.27"]
[EventType "swiss"]
[EventCountry "GBR"]
[SourceTitle "playchess.com"]
[Source "ChessBase"]
[SourceQuality "1"]
[TimeControl "40/5400+30:1800+30"]

1. e4 {[%emt 0:00:00]} c6 {[%emt 0:05:12]} 2. c4 {[%emt 0:00:00]} d5 {[%emt 0:00:12]} 3. cxd5 {[%emt 0:00:00]} cxd5 {[%emt 0:00:04]} 4. exd5 {[%emt 0:00:06]} Nf6 {[%emt 0:00:09]} 5. Nc3 {[%emt 0:00:09]} g6 {[%emt 0:00:49]} 6. Bc4 {[%emt 0:02:10]} Bg7 {[%emt 0:00:56]} 7. Nf3 {[%emt 0:03:19]} O-O {[%emt 0:00:35]} 8. O-O {[%emt 0:00:17]} Nbd7 {[%emt 0:05:48]} 9. d3 {[%emt 0:02:25]} Nb6 {[%emt 0:00:12]} 10. Qb3 {[%emt 0:00:31]} Bg4 {[%emt 0:02:32]} 11. Ne5 {[%emt 0:02:06]} Bf5 {[%emt 0:00:11]} 12. Re1 {[%emt 0:02:23]} Rc8 {[%emt 0:01:30]} 13. Be3 {[%emt 0:09:08]} Nh5 {[%emt 0:15:33]} 14. Nf3 {[%emt 0:14:01]} Bg4 {[%emt 0:00:25]} 15. Ng5 {[%emt 0:01:09]} h6 {[%emt 0:07:24]} 16. Nge4 {[%emt 0:22:54]} Nxc4 {[%emt 0:03:36]} 17. dxc4 {[%emt 0:00:15]} f5 {[%emt 0:00:07]} 18. Nd2 {[%emt 0:04:56]} f4 {[%emt 0:00:28]} 19. Bxa7 {[%emt 0:00:06]} f3 {[%emt 0:00:29]} 20. g3 {[%emt 0:01:17]} e5 {[%emt 0:13:24]} 21. Nce4 {[%emt 0:03:40]} Rf5 {[%emt 0:04:57]} 22. Qb6 {[%emt 0:01:52]} Qf8 {[%emt 0:02:18]} 23. Qd6 {[%emt 0:05:46]} Qf7 {[%emt 0:00:19]} 24. Qe6 {[%emt 0:00:06]} Qxe6 {[%emt 0:00:15]} 25. dxe6 {[%emt 0:00:05]} Bf8 {[%emt 0:00:09]} 26. c5 {[%emt 0:05:00]} Ng7 {[%emt 0:01:59]} 27. Nc4 {[%emt 0:00:45]} Ra8 {[%emt 0:01:56]} 28. Ne3 {[%emt 0:06:03]} Bh3 {[%emt 0:00:03]} 29. Nxf5 {[%emt 0:00:47]} gxf5 {[%emt 0:00:24]} 30. Nf6+ {[%emt 0:00:23]} Kh8 {[%emt 0:00:04]} 31. Rxe5 {[%emt 0:00:14]} Be7 {[%emt 0:01:50]} 32. Nd5 {[%emt 0:00:18]} Bg5 {[%emt 0:00:03]} 33. Bb6 {[%emt 0:01:42]} f4 {[%emt 0:00:24]} 34. e7 {[%emt 0:00:33]} 1-0

[Event "106th British-ch 2019"]
[Site "Torquay"]
[Date "2019.07.29"]
[Round "3.11"]
[White "Rudd, Jack"]
[Black "Gordon, Stephen J"]
[Result "1/2-1/2"]
[ECO "D35"]
[WhiteElo "2275"]
[BlackElo "2516"]
[Annotator "ChessBase"]
[PlyCount "48"]
[EventDate "2019.07.27"]
[EventType "swiss"]
[EventCountry "GBR"]
[SourceTitle "playchess.com"]
[Source "ChessBase"]
[SourceQuality "1"]
[TimeControl "40/5400+30:1800+30"]

1. d4 {[%emt 0:00:00]} Nf6 {[%emt 0:03:38]} 2. c4 {[%emt 0:00:00]} e6 {[%emt 0:00:03]} 3. Nf3 {[%emt 0:00:00]} d5 {[%emt 0:03:24]} 4. cxd5 {[%emt 0:00:19]} exd5 {[%emt 0:00:08]} 5. Nc3 {[%emt 0:00:05]} c6 {[%emt 0:00:24]} 6. Bg5 {[%emt 0:00:08]} h6 {[%emt 0:00:55]} 7. Bh4 {[%emt 0:00:20]} Bf5 {[%emt 0:00:21]} 8. e3 {[%emt 0:00:40]} Nbd7 {[%emt 0:00:13]} 9. Bd3 {[%emt 0:00:09]} Bxd3 {[%emt 0:00:37]} 10. Qxd3 {[%emt 0:00:10]} Bd6 {[%emt 0:03:30]} 11. O-O {[%emt 0:00:56]} O-O {[%emt 0:00:11]} 12. Rab1 {[%emt 0:00:07]} a5 {[%emt 0:04:22]} 13. a3 {[%emt 0:00:43]} Re8 {[%emt 0:46:42]} 14. Qc2 {[%emt 0:00:30]} Qe7 15. Bg3 {[%emt 0:00:30]} Bxg3 {[%emt 0:01:00]} 16. hxg3 {[%emt 0:00:30]} Nb6 {[%emt 0:00:30]} 17. Nd2 {[%emt 0:00:30]} Ng4 {[%emt 0:00:30]} 18. Qf5 {[%emt 0:00:30]} Nf6 {[%emt 0:00:30]} 19. Qc2 {[%emt 0:00:30]} Rec8 {[%emt 0:00:30]} 20. b4 {[%emt 0:00:30]} axb4 {[%emt 0:00:30]} 21. axb4 {[%emt 0:00:30]} Ra3 {[%emt 0:00:30]} 22. Ne2 {[%emt 0:00:30]} Rca8 {[%emt 0:00:30]} 23. b5 {[%emt 0:00:30]} Ra2 {[%emt 0:00:30]} 24. Qc1 {[%emt 0:00:30]} Nfd7 {[%emt 0:00:30]} 1/2-1/2

[Event "106th British-ch 2019"]
[Site "Torquay"]
[Date "2019.07.29"]
[Round "3.13"]
[White "Ward, Chris G"]
[Black "Toma, Katarzyna"]
[Result "0-1"]
[ECO "A29"]
[WhiteElo "2418"]
[BlackElo "2229"]
[Annotator "NA"]
[PlyCount "60"]
[EventDate "2019.07.27"]
[EventType "swiss"]
[EventCountry "GBR"]
[SourceTitle "playchess.com"]
[Source "ChessBase"]
[SourceQuality "1"]
[TimeControl "40/5400+30:1800+30"]

1. c4 {[%emt 0:06:04]} e5 {[%emt 0:00:01]} 2. g3 {[%emt 0:00:26]} Nf6 {[%emt 0:01:19]} 3. Bg2 {[%emt 0:00:59]} d5 {[%emt 0:03:35]} 4. cxd5 {[%emt 0:00:06]} Nxd5 {[%emt 0:00:05]} 5. Nc3 {[%emt 0:00:09]} Be6 {[%emt 0:00:29]} 6. Nf3 {[%emt 0:03:19]} Nc6 {[%emt 0:02:02]} 7. O-O {[%emt 0:01:55]} Be7 {[%emt 0:00:34]} 8. d4 {[%emt 0:02:59]} Nxc3 {[%emt 0:14:08]} 9. bxc3 {[%emt 0:00:07]} e4 {[%emt 0:00:53]} 10. Ne1 {[%emt 0:24:01]} f5 11. f3 {[%emt 0:00:30]} exf3 {[%emt 0:06:56]} 12. Bxf3 {[%emt 0:00:30]} O-O {[%emt 0:00:30]} 13. Qa4 {[%emt 0:00:30]} Qd7 {[%emt 0:00:30]} 14. Rb1 {[%emt 0:00:30]} Rab8 {[%emt 0:00:30]} 15. Bg2 {[%emt 0:00:30]} b5 {[%emt 0:00:30]} 16. Qc2 {[%emt 0:00:30]} b4 {[%emt 0:00:30]} 17. e3 {[%emt 0:00:30]} bxc3 {[%emt 0:00:30]} 18. Rxb8 {[%emt 0:00:30]} Rxb8 {[%emt 0:00:30]} 19. Qxc3 {[%emt 0:00:30]} Nb4 {[%emt 0:00:30]} 20. Bd2 {[%emt 0:00:30]} Nxa2 {[%emt 0:00:30]} 21. Qa5 {[%emt 0:00:30]} c5 {[%emt 0:00:30]} 22. Nf3 {[%emt 0:00:30]} Rb5 {[%emt 0:00:30]} 23. Ne5 {[%emt 0:00:30]} Rxa5 {[%emt 0:00:30]} 24. Nxd7 {[%emt 0:00:30]} Rb5 {[%emt 0:00:30]} 25. Nxc5 {[%emt 0:00:30]} Bxc5 {[%emt 0:00:30]} 26. dxc5 {[%emt 0:00:30]} Rxc5 {[%emt 0:00:30]} 27. Rb1 {[%emt 0:00:30]} Rc2 {[%emt 0:00:30]} 28. Rb8+ {[%emt 0:00:30]} Kf7 {[%emt 0:00:30]} 29. Rb7+ {[%emt 0:00:30]} Kg6 {[%emt 0:00:30]} 30. Ba5 {[%emt 0:00:30]} Rxg2+ {[%emt 0:00:30]} 0-1

[Event "106th British-ch 2019"]
[Site "Torquay"]
[Date "2019.07.29"]
[Round "3.14"]
[White "Stoyanov, Viktor"]
[Black "Wadsworth, Matthew J"]
[Result "0-1"]
[ECO "A21"]
[WhiteElo "2198"]
[BlackElo "2418"]
[Annotator "NA"]
[PlyCount "68"]
[EventDate "2019.07.27"]
[EventType "swiss"]
[EventCountry "GBR"]
[SourceTitle "playchess.com"]
[Source "ChessBase"]
[SourceQuality "1"]
[TimeControl "40/5400+30:1800+30"]

1. c4 {[%emt 0:00:00]} e5 {[%emt 0:00:01]} 2. Nc3 {[%emt 0:00:00]} Bb4 {[%emt 0:00:23]} 3. Nd5 {[%emt 0:00:00]} Be7 {[%emt 0:00:14]} 4. Nf3 {[%emt 0:00:28]} c6 {[%emt 0:00:34]} 5. Nxe7 {[%emt 0:00:59]} Qxe7 {[%emt 0:00:14]} 6. e3 {[%emt 0:01:27]} d6 {[%emt 0:04:35]} 7. d4 {[%emt 0:02:12]} Nf6 {[%emt 0:00:27]} 8. b3 {[%emt 0:01:42]} e4 {[%emt 0:04:14]} 9. Nd2 {[%emt 0:00:20]} a5 {[%emt 0:00:45]} 10. Be2 {[%emt 0:02:44]} h5 {[%emt 0:06:11]} 11. h3 {[%emt 0:06:35]} Na6 {[%emt 0:09:51]} 12. a3 {[%emt 0:01:15]} Nc7 {[%emt 0:00:30]} 13. Bb2 {[%emt 0:00:30]} h4 {[%emt 0:00:30]} 14. Nb1 {[%emt 0:00:30]} Rh6 {[%emt 0:00:30]} 15. Nc3 {[%emt 0:00:30]} Rg6 {[%emt 0:00:30]} 16. Bf1 {[%emt 0:00:30]} Be6 {[%emt 0:00:30]} 17. Qc2 {[%emt 0:00:30]} d5 {[%emt 0:00:30]} 18. cxd5 {[%emt 0:00:30]} Bxd5 {[%emt 0:00:30]} 19. Na4 {[%emt 0:00:30]} Nd7 {[%emt 0:00:30]} 20. Nc5 {[%emt 0:00:30]} b6 {[%emt 0:00:30]} 21. Nxd7 {[%emt 0:00:30]} Kxd7 {[%emt 0:00:30]} 22. Bc3 {[%emt 0:00:30]} Qe6 {[%emt 0:00:30]} 23. Rb1 {[%emt 0:00:30]} b5 {[%emt 0:00:30]} 24. a4 {[%emt 0:00:30]} b4 {[%emt 0:00:30]} 25. Bd2 {[%emt 0:00:30]} Qd6 {[%emt 0:00:30]} 26. Qd1 {[%emt 0:00:30]} Rg5 {[%emt 0:00:30]} 27. Rc1 {[%emt 0:37:33]} Qg6 {[%emt 0:29:48]} 28. Rc5 {[%emt 0:03:27]} Ne6 {[%emt 0:00:06]} 29. Rxd5+ {[%emt 0:02:21]} cxd5 {[%emt 0:02:30]} 30. f4 {[%emt 0:00:50]} exf3 {[%emt 0:03:52]} 31. Qxf3 {[%emt 0:00:06]} Ke7 {[%emt 0:03:20]} 32. e4 {[%emt 0:02:02]} Rg3 {[%emt 0:00:09]} 33. Qf5 {[%emt 0:01:16]} Qxf5 {[%emt 0:00:31]} 34. exf5 {[%emt 0:00:02]} Nxd4 {[%emt 0:00:10]} 0-1

[Event "106th British-ch 2019"]
[Site "Torquay"]
[Date "2019.07.29"]
[Round "3.15"]
[White "Pigott, John C"]
[Black "Merriman, John"]
[Result "1/2-1/2"]
[ECO "A37"]
[WhiteElo "2384"]
[BlackElo "2226"]
[Annotator "NA"]
[PlyCount "37"]
[EventDate "2019.07.27"]
[EventType "swiss"]
[EventCountry "GBR"]
[SourceTitle "playchess.com"]
[Source "ChessBase"]
[SourceQuality "1"]
[TimeControl "40/5400+30:1800+30"]

1. c4 {[%emt 0:00:00]} e5 {[%emt 0:02:06]} 2. g3 {[%emt 0:00:09]} c5 {[%emt 0:00:20]} 3. Nc3 {[%emt 0:00:54]} g6 {[%emt 0:00:31]} 4. Bg2 {[%emt 0:00:27]} Bg7 {[%emt 0:01:49]} 5. a3 {[%emt 0:06:07]} a5 {[%emt 0:27:46]} 6. Nf3 {[%emt 0:23:01]} Nc6 {[%emt 0:00:00]} 7. O-O {[%emt 0:00:26]} Nge7 {[%emt 0:00:00]} 8. Ne1 {[%emt 0:01:06]} h5 {[%emt 0:00:00]} 9. d3 {[%emt 0:09:51]} h4 {[%emt 0:00:00]} 10. Ne4 {[%emt 0:02:37]} d6 {[%emt 0:00:00]} 11. Bg5 {[%emt 0:01:44]} f5 {[%emt 0:13:33]} 12. Nc3 {[%emt 0:02:18]} hxg3 {[%emt 0:01:44]} 13. hxg3 {[%emt 0:11:44]} Be6 {[%emt 0:14:00]} 14. Nd5 {[%emt 0:12:04]} Rh5 {[%emt 0:07:45]} 15. Nf3 {[%emt 0:10:00]} Bxd5 {[%emt 0:09:49]} 16. cxd5 {[%emt 0:00:04]} Nd4 {[%emt 0:00:05]} 17. Nxd4 {[%emt 0:02:03]} cxd4 {[%emt 0:00:30]} 18. Qd2 {[%emt 0:00:25]} Kf7 {[%emt 0:02:22]} 19. Bf3 {[%emt 0:02:59]} 1/2-1/2

[Event "106th British-ch 2019"]
[Site "Torquay"]
[Date "2019.07.29"]
[Round "3.16"]
[White "Jones, Steven A"]
[Black "Bradbury, Neil H"]
[Result "1/2-1/2"]
[ECO "A46"]
[WhiteElo "2117"]
[BlackElo "2322"]
[Annotator "NA"]
[PlyCount "87"]
[EventDate "2019.07.27"]
[EventType "swiss"]
[EventCountry "GBR"]
[SourceTitle "playchess.com"]
[Source "ChessBase"]
[SourceQuality "1"]
[TimeControl "40/5400+30:1800+30"]

1. d4 {[%emt 0:00:00]} Nf6 {[%emt 0:00:00]} 2. Nf3 {[%emt 0:00:27]} e6 {[%emt 0:00:37]} 3. g3 {[%emt 0:00:41]} b5 {[%emt 0:02:40]} 4. Bg2 {[%emt 0:00:14]} Bb7 {[%emt 0:00:06]} 5. O-O {[%emt 0:00:29]} c5 {[%emt 0:01:00]} 6. Bg5 {[%emt 0:00:06]} cxd4 {[%emt 0:14:40]} 7. Bxf6 {[%emt 0:01:16]} Qxf6 {[%emt 0:13:07]} 8. Nxd4 {[%emt 0:02:50]} Bxg2 {[%emt 0:01:33]} 9. Kxg2 {[%emt 0:00:06]} a6 {[%emt 0:00:14]} 10. c3 {[%emt 0:02:09]} Be7 {[%emt 0:09:32]} 11. Qd3 {[%emt 0:06:59]} O-O {[%emt 0:03:21]} 12. a4 {[%emt 0:14:35]} b4 {[%emt 0:05:51]} 13. a5 {[%emt 0:00:53]} d5 {[%emt 0:02:36]} 14. cxb4 {[%emt 0:13:42]} Bxb4 {[%emt 0:02:40]} 15. Rc1 {[%emt 0:00:08]} Nd7 {[%emt 0:03:07]} 16. e3 {[%emt 0:01:46]} Nc5 {[%emt 0:14:43]} 17. Qc2 {[%emt 0:04:36]} Rac8 {[%emt 0:06:13]} 18. Nc3 {[%emt 0:03:26]} g6 {[%emt 0:04:43]} 19. Qe2 {[%emt 0:20:10]} Bxc3 {[%emt 0:00:45]} 20. Rxc3 {[%emt 0:00:11]} Ne4 {[%emt 0:02:26]} 21. Rxc8 Rxc8 {[%emt 0:00:02]} 22. f3 {[%emt 0:06:19]} e5 {[%emt 0:00:35]} 23. fxe4 {[%emt 0:03:00]} exd4 {[%emt 0:00:12]} 24. exd5 {[%emt 0:00:22]} d3 {[%emt 0:00:17]} 25. Qf1 {[%emt 0:01:37]} Qxb2+ {[%emt 0:05:11]} 26. Kf3 {[%emt 0:00:25]} d2 {[%emt 0:01:43]} 27. Rd1 {[%emt 0:00:37]} Rc1 {[%emt 0:02:35]} 28. Qe2 {[%emt 0:00:14]} Qf6+ {[%emt 0:00:49]} 29. Kg2 {[%emt 0:01:16]} Rxd1 {[%emt 0:00:17]} 30. Qxd1 {[%emt 0:00:06]} Qc3 {[%emt 0:00:25]} 31. Kf2 {[%emt 0:00:36]} Qxa5 {[%emt 0:00:30]} 32. e4 {[%emt 0:00:12]} f5 {[%emt 0:02:15]} 33. Qc2 {[%emt 0:00:00]} fxe4 {[%emt 0:00:12]} 34. Qc8+ {[%emt 0:00:10]} Kg7 {[%emt 0:00:14]} 35. Qd7+ {[%emt 0:00:08]} Kh6 {[%emt 0:00:16]} 36. Qh3+ {[%emt 0:00:10]} Kg7 {[%emt 0:00:07]} 37. Qd7+ {[%emt 0:00:02]} Kf8 {[%emt 0:00:24]} 38. Qc8+ {[%emt 0:02:29]} Ke7 {[%emt 0:01:06]} 39. Qe6+ {[%emt 0:00:07]} Kf8 {[%emt 0:01:19]} 40. Qc8+ {[%emt 0:00:07]} Ke7 {[%emt 0:00:22]} 41. Qe6+ {[%emt 0:30:05]} Kd8 {[%emt 0:07:23]} 42. Qd6+ {[%emt 0:00:00]} Kc8 {[%emt 0:00:08]} 43. Qc6+ {[%emt 0:00:00]} Kd8 {[%emt 0:10:11]} 44. Qd6+ {[%emt 0:00:00]} 1/2-1/2

[Event "106th British-ch 2019"]
[Site "Torquay"]
[Date "2019.07.29"]
[Round "3.18"]
[White "Modi, Shyam Jagdish"]
[Black "Zapolskis, Antanas"]
[Result "0-1"]
[ECO "C01"]
[WhiteElo "2098"]
[BlackElo "2290"]
[Annotator "NA"]
[PlyCount "58"]
[EventDate "2019.07.27"]
[EventType "swiss"]
[EventCountry "GBR"]
[SourceTitle "playchess.com"]
[Source "ChessBase"]
[SourceQuality "1"]
[TimeControl "40/5400+30:1800+30"]

1. d4 {[%emt 0:00:00]} b5 {[%emt 0:00:00]} 2. e4 {[%emt 0:00:02]} a6 {[%emt 0:00:00]} 3. Bd3 {[%emt 0:01:12]} e6 {[%emt 0:00:00]} 4. Nf3 {[%emt 0:00:43]} c5 {[%emt 0:00:25]} 5. c3 {[%emt 0:00:48]} d6 {[%emt 0:00:55]} 6. O-O {[%emt 0:01:01]} Nf6 {[%emt 0:04:21]} 7. Re1 {[%emt 0:06:41]} Be7 {[%emt 0:00:16]} 8. Nbd2 {[%emt 0:02:34]} O-O {[%emt 0:00:52]} 9. a4 {[%emt 0:04:06]} b4 {[%emt 0:01:43]} 10. Qe2 {[%emt 0:08:41]} bxc3 {[%emt 0:07:32]} 11. bxc3 {[%emt 0:00:17]} cxd4 {[%emt 0:00:08]} 12. cxd4 {[%emt 0:01:24]} Nc6 {[%emt 0:00:33]} 13. Ba3 {[%emt 0:12:05]} a5 {[%emt 0:04:37]} 14. e5 {[%emt 0:17:13]} dxe5 {[%emt 0:00:20]} 15. Bxe7 {[%emt 0:01:26]} Qxe7 {[%emt 0:00:19]} 16. dxe5 {[%emt 0:00:22]} Nd5 {[%emt 0:00:10]} 17. Qe4 {[%emt 0:01:25]} g6 {[%emt 0:00:11]} 18. Bb5 {[%emt 0:08:25]} Ncb4 {[%emt 0:01:56]} 19. Nc4 {[%emt 0:02:06]} Bb7 {[%emt 0:04:06]} 20. Nd6 {[%emt 0:01:13]} Rab8 {[%emt 0:00:10]} 21. Nxb7 {[%emt 0:01:29]} Rxb7 {[%emt 0:00:09]} 22. Rec1 {[%emt 0:02:23]} Rc7 {[%emt 0:00:10]} 23. Rxc7 {[%emt 0:06:28]} Qxc7 {[%emt 0:00:40]} 24. Nd4 {[%emt 0:08:00]} Nc3 {[%emt 0:08:21]} 25. Qe3 {[%emt 0:01:23]} Nbd5 {[%emt 0:00:43]} 26. Qe1 {[%emt 0:00:52]} Qc5 {[%emt 0:00:49]} 27. Qd2 {[%emt 0:01:48]} Ne4 {[%emt 0:05:12]} 28. Qd3 {[%emt 0:03:46]} Ndc3 {[%emt 0:00:31]} 29. Re1 {[%emt 0:02:06]} Rd8 {[%emt 0:00:14]} 0-1